[Event "Late-Titled-Tuesday-Blitz-April-23-2024"]
[Site "Chess.com"]
[Date "2024.04.23"]
[Round "9"]
[White "Rud_Makarian"]
[Black "DanielDardha2005"]
[Result "0-1"]
[WhiteElo "3035"]
[BlackElo "2867"]
[TimeControl "180+1"]
[EndTime "15:47:13 PDT"]
[Termination "DanielDardha2005 won on time"]

1. d4 {[%clk 0:03:00.9]} 1... Nf6 {[%clk 0:02:58]} 2. c4 {[%clk 0:03:01.5]} 2...
d6 {[%clk 0:02:57.7]} 3. Nf3 {[%clk 0:03:02.2]} 3... Nbd7 {[%clk 0:02:57.6]} 4.
Nc3 {[%clk 0:03:02.5]} 4... e5 {[%clk 0:02:58.2]} 5. e4 {[%clk 0:03:02.8]} 5...
g6 {[%clk 0:02:58.4]} 6. Be2 {[%clk 0:03:03]} 6... Bg7 {[%clk 0:02:58.8]} 7. O-O
{[%clk 0:03:03.8]} 7... O-O {[%clk 0:02:59]} 8. Be3 {[%clk 0:03:04.5]} 8... Qe7
{[%clk 0:02:59.1]} 9. d5 {[%clk 0:02:54.6]} 9... a5 {[%clk 0:02:58.7]} 10. Nd2
{[%clk 0:02:54.8]} 10... Ne8 {[%clk 0:02:52.8]} 11. a3 {[%clk 0:02:53.2]} 11...
f5 {[%clk 0:02:51.2]} 12. f3 {[%clk 0:02:53.9]} 12... f4 {[%clk 0:02:47.8]} 13.
Bf2 {[%clk 0:02:53.7]} 13... g5 {[%clk 0:02:48.7]} 14. b4 {[%clk 0:02:52.9]}
14... h5 {[%clk 0:02:40.4]} 15. c5 {[%clk 0:02:49]} 15... axb4 {[%clk
0:02:36.6]} 16. axb4 {[%clk 0:02:49.1]} 16... Rxa1 {[%clk 0:02:37.3]} 17. Qxa1
{[%clk 0:02:48.7]} 17... dxc5 {[%clk 0:02:37]} 18. bxc5 {[%clk 0:02:49]} 18...
Nxc5 {[%clk 0:02:37.2]} 19. Nb5 {[%clk 0:02:43.6]} 19... b6 {[%clk 0:02:33.2]}
20. Rc1 {[%clk 0:02:33.5]} 20... Nd6 {[%clk 0:02:24.9]} 21. Bxc5 {[%clk
0:02:11.2]} 21... bxc5 {[%clk 0:02:22.4]} 22. Qa5 {[%clk 0:02:03.5]} 22... Nxb5
{[%clk 0:02:19.9]} 23. Qxb5 {[%clk 0:02:02.9]} 23... g4 {[%clk 0:02:20.1]} 24.
Qxc5 {[%clk 0:02:00.3]} 24... Qh4 {[%clk 0:02:14.1]} 25. Qxc7 {[%clk 0:01:50.8]}
25... g3 {[%clk 0:02:11.6]} 26. Nf1 {[%clk 0:01:32.3]} 26... gxh2+ {[%clk
0:02:09.1]} 27. Nxh2 {[%clk 0:01:31.8]} 27... Qg5 {[%clk 0:01:45.7]} 28. d6
{[%clk 0:01:23.8]} 28... Bh3 {[%clk 0:01:42.3]} 29. Bf1 {[%clk 0:01:17.6]} 29...
Rc8 {[%clk 0:01:42]} 30. Qxc8+ {[%clk 0:01:06.9]} 30... Bxc8 {[%clk 0:01:42.9]}
31. Rxc8+ {[%clk 0:01:06.7]} 31... Kh7 {[%clk 0:01:43.6]} 32. d7 {[%clk
0:01:06.2]} 32... Bf6 {[%clk 0:01:43.8]} 33. Re8 {[%clk 0:01:02]} 33... Bd8
{[%clk 0:01:42]} 34. Kh1 {[%clk 0:00:46.8]} 34... Bb6 {[%clk 0:01:34.8]} 35. Re6
{[%clk 0:00:42.8]} 35... Bc7 {[%clk 0:01:22.1]} 36. Bc4 {[%clk 0:00:36.7]} 36...
Qh4 {[%clk 0:01:15.4]} 37. Rc6 {[%clk 0:00:32.5]} 37... Qe1+ {[%clk 0:01:13.2]}
38. Nf1 {[%clk 0:00:31.5]} 38... Bd8 {[%clk 0:01:13.8]} 39. Kg1 {[%clk
0:00:24.3]} 39... Kg7 {[%clk 0:01:03.1]} 40. Ba6 {[%clk 0:00:17.5]} 40... Qd1
{[%clk 0:00:57.5]} 41. Bb5 {[%clk 0:00:14.9]} 41... h4 {[%clk 0:00:38]} 42. Rc8
{[%clk 0:00:14.1]} 42... Bb6+ {[%clk 0:00:37.8]} 43. Kh2 {[%clk 0:00:14.7]}
43... Qd4 {[%clk 0:00:32.8]} 44. Kh3 {[%clk 0:00:14.7]} 44... Qg1 {[%clk
0:00:26.4]} 45. d8=Q {[%clk 0:00:09.6]} 45... Bxd8 {[%clk 0:00:14.9]} 46. Rxd8
{[%clk 0:00:10.5]} 46... Qh1+ {[%clk 0:00:06.9]} 47. Nh2 {[%clk 0:00:10.7]}
47... Qb1 {[%clk 0:00:07.8]} 48. Rd5 {[%clk 0:00:09.6]} 48... Kf6 {[%clk
0:00:08.5]} 49. Ng4+ {[%clk 0:00:09.7]} 49... Kg6 {[%clk 0:00:07.9]} 50. Rxe5
{[%clk 0:00:08]} 50... Qe1 {[%clk 0:00:07.9]} 51. Kh2 {[%clk 0:00:04.7]} 51...
h3 {[%clk 0:00:07]} 52. gxh3 {[%clk 0:00:02.4]} 52... Qg3+ {[%clk 0:00:07.2]}
53. Kh1 {[%clk 0:00:03]} 53... Qxf3+ {[%clk 0:00:05]} 54. Kg1 {[%clk 0:00:03.7]}
54... Qg3+ {[%clk 0:00:05.2]} 55. Kh1 {[%clk 0:00:02.9]} 55... Qe1+ {[%clk
0:00:02.7]} 56. Kg2 {[%clk 0:00:02.8]} 56... Qg3+ {[%clk 0:00:03.3]} 57. Kh1
{[%clk 0:00:03.5]} 57... Qxh3+ {[%clk 0:00:03.8]} 58. Nh2 {[%clk 0:00:03]} 58...
Qc3 {[%clk 0:00:02.5]} 59. Rf5 {[%clk 0:00:02.7]} 59... Qe1+ {[%clk 0:00:01.9]}
0-1

[Event "Late-Titled-Tuesday-Blitz-April-23-2024"]
[Site "Chess.com"]
[Date "2024.04.23"]
[Round "9"]
[White "wild3000"]
[Black "Pig-filth"]
[Result "1-0"]
[WhiteElo "2425"]
[BlackElo "2261"]
[TimeControl "180+1"]
[EndTime "15:47:17 PDT"]
[Termination "wild3000 won on time"]

1. b4 {[%clk 0:02:25.9]} 1... Nf6 {[%clk 0:02:58.6]} 2. Bb2 {[%clk 0:02:25.6]}
2... c6 {[%clk 0:02:57.6]} 3. c4 {[%clk 0:02:23]} 3... d5 {[%clk 0:02:55]} 4. c5
{[%clk 0:02:23]} 4... Bf5 {[%clk 0:02:52.6]} 5. Nf3 {[%clk 0:02:22.9]} 5... h6
{[%clk 0:02:53]} 6. d4 {[%clk 0:02:17.2]} 6... Nbd7 {[%clk 0:02:51.3]} 7. a4
{[%clk 0:02:16.9]} 7... g5 {[%clk 0:02:43.5]} 8. h4 {[%clk 0:02:14.6]} 8... g4
{[%clk 0:02:43]} 9. Ne5 {[%clk 0:02:14.6]} 9... Bg7 {[%clk 0:02:36.7]} 10. Nd2
{[%clk 0:02:05.2]} 10... h5 {[%clk 0:02:27.1]} 11. e3 {[%clk 0:01:52.3]} 11...
Qc7 {[%clk 0:02:25.7]} 12. Nxd7 {[%clk 0:01:51.3]} 12... Nxd7 {[%clk 0:02:22.7]}
13. g3 {[%clk 0:01:41.2]} 13... e5 {[%clk 0:02:22.3]} 14. Bg2 {[%clk 0:01:39.6]}
14... exd4 {[%clk 0:02:20.1]} 15. exd4 {[%clk 0:01:39.6]} 15... O-O {[%clk
0:02:17]} 16. O-O {[%clk 0:01:39.4]} 16... Rfe8 {[%clk 0:02:15.6]} 17. Ra3
{[%clk 0:01:19]} 17... a5 {[%clk 0:02:14.6]} 18. Qb3 {[%clk 0:01:08.8]} 18...
axb4 {[%clk 0:02:08.6]} 19. Qxb4 {[%clk 0:01:08.7]} 19... Re2 {[%clk 0:01:49.2]}
20. Bc1 {[%clk 0:01:04.8]} 20... b6 {[%clk 0:01:42.5]} 21. cxb6 {[%clk
0:01:03.8]} 21... Nxb6 {[%clk 0:01:42.2]} 22. a5 {[%clk 0:01:03.6]} 22... Nd7
{[%clk 0:01:31.8]} 23. Nb3 {[%clk 0:01:02.7]} 23... Ree8 {[%clk 0:01:28.7]} 24.
Bf4 {[%clk 0:01:01.7]} 24... Qa7 {[%clk 0:01:23.4]} 25. Rc1 {[%clk 0:00:51.1]}
25... Rac8 {[%clk 0:01:18]} 26. a6 {[%clk 0:00:44.9]} 26... Bd3 {[%clk
0:01:03.6]} 27. Qb7 {[%clk 0:00:43.1]} 27... Ra8 {[%clk 0:00:56.5]} 28. Qxa7
{[%clk 0:00:36.6]} 28... Rxa7 {[%clk 0:00:57.4]} 29. Be3 {[%clk 0:00:26.1]}
29... Bb5 {[%clk 0:00:50]} 30. Nc5 {[%clk 0:00:25.4]} 30... Nxc5 {[%clk
0:00:49.5]} 31. Rxc5 {[%clk 0:00:24.8]} 31... Rea8 {[%clk 0:00:50.1]} 32. Bxd5
{[%clk 0:00:18.6]} 32... Rxa6 {[%clk 0:00:50.5]} 33. Rxa6 {[%clk 0:00:18.3]}
33... Rxa6 {[%clk 0:00:51.3]} 34. Be4 {[%clk 0:00:15.4]} 34... Ra1+ {[%clk
0:00:41.9]} 35. Kh2 {[%clk 0:00:15.3]} 35... Ra6 {[%clk 0:00:39.6]} 36. Rxh5
{[%clk 0:00:15]} 36... Be2 {[%clk 0:00:35.5]} 37. Rc5 {[%clk 0:00:14.3]} 37...
Bb5 {[%clk 0:00:34.8]} 38. h5 {[%clk 0:00:13.8]} 38... Bf8 {[%clk 0:00:35.2]}
39. Rg5+ {[%clk 0:00:12.6]} 39... Kh8 {[%clk 0:00:33.1]} 40. Rxg4 {[%clk
0:00:12.6]} 40... Be7 {[%clk 0:00:17]} 41. Bf4 {[%clk 0:00:12.2]} 41... Bf6
{[%clk 0:00:17.1]} 42. Be5 {[%clk 0:00:11.8]} 42... Bxe5 {[%clk 0:00:17.6]} 43.
dxe5 {[%clk 0:00:12.7]} 43... c5 {[%clk 0:00:18.4]} 44. Bd5 {[%clk 0:00:09.2]}
44... Be8 {[%clk 0:00:16.3]} 45. Rc4 {[%clk 0:00:07.8]} 45... Rh6 {[%clk
0:00:13.4]} 46. g4 {[%clk 0:00:07.2]} 46... f6 {[%clk 0:00:14]} 47. exf6 {[%clk
0:00:07]} 47... Rxf6 {[%clk 0:00:14.7]} 48. Kg3 {[%clk 0:00:06.8]} 48... Bd7
{[%clk 0:00:15.3]} 49. Rxc5 {[%clk 0:00:06.6]} 49... Ra6 {[%clk 0:00:12.4]} 50.
f3 {[%clk 0:00:06.6]} 50... Kg7 {[%clk 0:00:12.6]} 51. Be4 {[%clk 0:00:06.6]}
51... Kf7 {[%clk 0:00:11.7]} 52. Rc7 {[%clk 0:00:06.4]} 52... Ke7 {[%clk
0:00:12.6]} 53. Rc5 {[%clk 0:00:06]} 53... Rd6 {[%clk 0:00:13.3]} 54. Rd5 {[%clk
0:00:05.5]} 54... Kd8 {[%clk 0:00:14]} 55. Rxd6 {[%clk 0:00:05.7]} 1-0

[Event "Late-Titled-Tuesday-Blitz-April-23-2024"]
[Site "Chess.com"]
[Date "2024.04.23"]
[Round "9"]
[White "rasmussvane"]
[Black "DamianoLew95"]
[Result "1-0"]
[WhiteElo "2958"]
[BlackElo "2754"]
[TimeControl "180+1"]
[EndTime "15:47:19 PDT"]
[Termination "rasmussvane won by resignation"]

1. Nf3 {[%clk 0:02:59]} 1... Nf6 {[%clk 0:02:59.7]} 2. g3 {[%clk 0:02:58.9]}
2... d5 {[%clk 0:02:57.3]} 3. Bg2 {[%clk 0:02:59.2]} 3... c5 {[%clk 0:02:56.7]}
4. O-O {[%clk 0:02:59.3]} 4... Nc6 {[%clk 0:02:57.2]} 5. d4 {[%clk 0:02:57.5]}
5... e6 {[%clk 0:02:52.9]} 6. c4 {[%clk 0:02:50.2]} 6... dxc4 {[%clk 0:02:51.1]}
7. Qa4 {[%clk 0:02:46.1]} 7... Bd7 {[%clk 0:02:45.9]} 8. Qxc4 {[%clk 0:02:45.1]}
8... b5 {[%clk 0:02:46]} 9. Qc3 {[%clk 0:02:43]} 9... Nd5 {[%clk 0:02:38.4]} 10.
Qd2 {[%clk 0:02:28.9]} 10... cxd4 {[%clk 0:02:25.3]} 11. Nxd4 {[%clk 0:02:27.5]}
11... Nxd4 {[%clk 0:02:25.1]} 12. Qxd4 {[%clk 0:02:28.4]} 12... Qb6 {[%clk
0:02:24.7]} 13. Qxb6 {[%clk 0:02:13.9]} 13... axb6 {[%clk 0:02:25.6]} 14. Nc3
{[%clk 0:02:12.3]} 14... Bc6 {[%clk 0:02:10.3]} 15. Nxd5 {[%clk 0:01:39.9]}
15... Bxd5 {[%clk 0:01:53.4]} 16. Bxd5 {[%clk 0:01:39.9]} 16... exd5 {[%clk
0:01:54.3]} 17. Rd1 {[%clk 0:01:40.1]} 17... O-O-O {[%clk 0:01:52.3]} 18. Be3
{[%clk 0:01:38]} 18... Kb7 {[%clk 0:01:45.9]} 19. Rd3 {[%clk 0:01:21.2]} 19...
Bc5 {[%clk 0:01:36]} 20. Rad1 {[%clk 0:01:13.3]} 20... Bxe3 {[%clk 0:01:27.7]}
21. Rxe3 {[%clk 0:01:12.6]} 21... Rd7 {[%clk 0:01:26.4]} 22. Rd4 {[%clk
0:01:09]} 22... Ra8 {[%clk 0:01:21.6]} 23. a3 {[%clk 0:00:57.2]} 23... Ra4
{[%clk 0:01:19.9]} 24. b4 {[%clk 0:00:49.3]} 24... Ra8 {[%clk 0:01:19.7]} 25.
Red3 {[%clk 0:00:49]} 25... Kc6 {[%clk 0:00:58.4]} 26. f3 {[%clk 0:00:38.4]}
26... Rad8 {[%clk 0:00:57]} 27. Kf2 {[%clk 0:00:37.9]} 27... Rd6 {[%clk
0:00:55.1]} 28. h4 {[%clk 0:00:36.9]} 28... R8d7 {[%clk 0:00:55.2]} 29. Rc3+
{[%clk 0:00:36.6]} 29... Kb7 {[%clk 0:00:54]} 30. Rcd3 {[%clk 0:00:37.2]} 30...
Kc6 {[%clk 0:00:53.6]} 31. Ke1 {[%clk 0:00:35.6]} 31... Re7 {[%clk 0:00:50.1]}
32. Kd2 {[%clk 0:00:35.4]} 32... Red7 {[%clk 0:00:19.7]} 33. h5 {[%clk
0:00:32.1]} 33... h6 {[%clk 0:00:19.6]} 34. Rg4 {[%clk 0:00:31.4]} 34... f6
{[%clk 0:00:19.3]} 35. Rgd4 {[%clk 0:00:30.7]} 35... Re7 {[%clk 0:00:19.5]} 36.
e3 {[%clk 0:00:27.3]} 36... Rdd7 {[%clk 0:00:16.7]} 37. Ke2 {[%clk 0:00:27.6]}
37... Rd6 {[%clk 0:00:16.3]} 38. Kf2 {[%clk 0:00:27.8]} 38... Rde6 {[%clk
0:00:16.9]} 39. Rxd5 {[%clk 0:00:22.2]} 39... Rxe3 {[%clk 0:00:16.6]} 40. Rd6+
{[%clk 0:00:20.5]} 40... Kc7 {[%clk 0:00:15.7]} 41. Rxe3 {[%clk 0:00:18.8]}
41... Kxd6 {[%clk 0:00:15.8]} 42. Rd3+ {[%clk 0:00:12.2]} 42... Kc6 {[%clk
0:00:15.6]} 43. g4 {[%clk 0:00:12.5]} 43... Re5 {[%clk 0:00:10.2]} 44. Kg3
{[%clk 0:00:11.9]} 44... Kc7 {[%clk 0:00:10.8]} 45. Kf4 {[%clk 0:00:12]} 45...
Kc8 {[%clk 0:00:08.9]} 46. Rd1 {[%clk 0:00:09.7]} 46... Kc7 {[%clk 0:00:09.2]}
47. Rd4 {[%clk 0:00:09.9]} 47... Kc8 {[%clk 0:00:06.9]} 48. Re4 {[%clk
0:00:10.3]} 48... Rd5 {[%clk 0:00:04.7]} 49. Re7 {[%clk 0:00:08.6]} 49... Rd7
{[%clk 0:00:04.9]} 50. Re6 {[%clk 0:00:05]} 50... Kc7 {[%clk 0:00:03.5]} 51. Kf5
{[%clk 0:00:04.9]} 51... Rd3 {[%clk 0:00:03.8]} 52. f4 {[%clk 0:00:05.1]} 52...
Rf3 {[%clk 0:00:01.7]} 53. Re7+ {[%clk 0:00:05.3]} 53... Kd6 {[%clk 0:00:01.6]}
54. Rxg7 {[%clk 0:00:06.2]} 54... Rxa3 {[%clk 0:00:01.8]} 55. Rg6 {[%clk
0:00:06.6]} 55... Rb3 {[%clk 0:00:02.3]} 56. Rxf6+ {[%clk 0:00:06.8]} 56... Kd5
{[%clk 0:00:02.7]} 57. Rxh6 {[%clk 0:00:06.1]} 57... Rxb4 {[%clk 0:00:03.2]} 58.
Rxb6 {[%clk 0:00:06.4]} 58... Kc5 {[%clk 0:00:03.8]} 59. Rb8 {[%clk 0:00:06.4]}
59... Rb1 {[%clk 0:00:03]} 60. h6 {[%clk 0:00:06.9]} 60... Rh1 {[%clk
0:00:02.3]} 61. g5 {[%clk 0:00:07.4]} 61... b4 {[%clk 0:00:03]} 62. Kg6 {[%clk
0:00:07.2]} 62... Kc4 {[%clk 0:00:02.1]} 63. h7 {[%clk 0:00:07]} 63... b3 {[%clk
0:00:01.9]} 64. h8=Q {[%clk 0:00:07.5]} 64... Rxh8 {[%clk 0:00:02.8]} 65. Rxh8
{[%clk 0:00:07.6]} 65... Kc3 {[%clk 0:00:03.1]} 66. Rb8 {[%clk 0:00:07.9]} 1-0

[Event "Late-Titled-Tuesday-Blitz-April-23-2024"]
[Site "Chess.com"]
[Date "2024.04.23"]
[Round "9"]
[White "maurovargas01"]
[Black "protectiago"]
[Result "0-1"]
[WhiteElo "1926"]
[BlackElo "2075"]
[TimeControl "180+1"]
[EndTime "15:47:21 PDT"]
[Termination "protectiago won by checkmate"]

1. e4 {[%clk 0:02:59.3]} 1... e5 {[%clk 0:02:59.3]} 2. Nf3 {[%clk 0:02:56.7]}
2... Nc6 {[%clk 0:02:59.4]} 3. d4 {[%clk 0:02:56.7]} 3... exd4 {[%clk
0:02:59.2]} 4. Bc4 {[%clk 0:02:57.2]} 4... Bc5 {[%clk 0:02:57.5]} 5. c3 {[%clk
0:02:56.4]} 5... Nf6 {[%clk 0:02:55.2]} 6. e5 {[%clk 0:02:52.8]} 6... d5 {[%clk
0:02:54.9]} 7. Bb5 {[%clk 0:02:51]} 7... Ne4 {[%clk 0:02:53.5]} 8. cxd4 {[%clk
0:02:47]} 8... Bb6 {[%clk 0:02:53.4]} 9. O-O {[%clk 0:02:45.8]} 9... O-O {[%clk
0:02:50.2]} 10. a4 {[%clk 0:02:34.4]} 10... Bg4 {[%clk 0:02:31.2]} 11. Bxc6
{[%clk 0:02:32]} 11... bxc6 {[%clk 0:02:09.4]} 12. a5 {[%clk 0:02:31.6]} 12...
Bxd4 {[%clk 0:02:05.5]} 13. Qxd4 {[%clk 0:02:29.2]} 13... c5 {[%clk 0:01:51.1]}
14. Qd1 {[%clk 0:02:20.2]} 14... Rb8 {[%clk 0:01:43.9]} 15. Nc3 {[%clk
0:02:16.4]} 15... Bxf3 {[%clk 0:01:02.9]} 16. Qxf3 {[%clk 0:02:12.5]} 16... Rb3
{[%clk 0:00:54.2]} 17. Qf4 {[%clk 0:02:06.9]} 17... Nxc3 {[%clk 0:00:31.3]} 18.
bxc3 {[%clk 0:02:04.8]} 18... Rxc3 {[%clk 0:00:31.3]} 19. Ra3 {[%clk 0:02:00.1]}
19... Rc4 {[%clk 0:00:30.5]} 20. Qg3 {[%clk 0:01:45.7]} 20... Re8 {[%clk
0:00:17]} 21. Bh6 {[%clk 0:01:36.8]} 21... g6 {[%clk 0:00:16.2]} 22. h3 {[%clk
0:01:27.6]} 22... Qe7 {[%clk 0:00:14.5]} 23. Re1 {[%clk 0:01:17.9]} 23... Qh4
{[%clk 0:00:11.6]} 24. Qxh4 {[%clk 0:01:16]} 24... Rxh4 {[%clk 0:00:11.6]} 25.
Bg5 {[%clk 0:01:15.2]} 25... Rd4 {[%clk 0:00:10.7]} 26. Bf6 {[%clk 0:01:14.3]}
26... c4 {[%clk 0:00:10.4]} 27. e6 {[%clk 0:01:06.4]} 27... Rd3 {[%clk
0:00:10.4]} 28. Rxd3 {[%clk 0:01:01.7]} 28... cxd3 {[%clk 0:00:11.3]} 29. exf7+
{[%clk 0:00:58.7]} 29... Kxf7 {[%clk 0:00:11.6]} 30. Rxe8 {[%clk 0:00:57.9]}
30... Kxe8 {[%clk 0:00:12.2]} 31. Bc3 {[%clk 0:00:57.1]} 31... c5 {[%clk
0:00:12]} 32. Kf1 {[%clk 0:00:54]} 32... Kd7 {[%clk 0:00:12.2]} 33. Ke1 {[%clk
0:00:53.4]} 33... Kc6 {[%clk 0:00:10.5]} 34. Kd2 {[%clk 0:00:52.4]} 34... c4
{[%clk 0:00:09.8]} 35. Bd4 {[%clk 0:00:49.9]} 35... Kb5 {[%clk 0:00:09.8]} 36.
Bxa7 {[%clk 0:00:46.6]} 36... Kxa5 {[%clk 0:00:10]} 37. Bd4 {[%clk 0:00:46.3]}
37... Kb5 {[%clk 0:00:09.8]} 38. g4 {[%clk 0:00:46.1]} 38... Kb4 {[%clk
0:00:09.6]} 39. Bc3+ {[%clk 0:00:44.6]} 39... Kc5 {[%clk 0:00:09.5]} 40. Be5
{[%clk 0:00:38.7]} 40... d4 {[%clk 0:00:09.3]} 41. f4 {[%clk 0:00:37.6]} 41...
Kd5 {[%clk 0:00:09.5]} 42. Bf6 {[%clk 0:00:35]} 42... Ke4 {[%clk 0:00:09.3]} 43.
Be5 {[%clk 0:00:30.9]} 43... c3+ {[%clk 0:00:09.4]} 44. Kc1 {[%clk 0:00:29.2]}
44... Ke3 {[%clk 0:00:08.2]} 45. f5 {[%clk 0:00:25.3]} 45... Ke2 {[%clk
0:00:08.3]} 46. Bxd4 {[%clk 0:00:22.9]} 46... d2+ {[%clk 0:00:08.3]} 47. Kc2
{[%clk 0:00:20.3]} 47... d1=Q+ {[%clk 0:00:08.3]} 48. Kxc3 {[%clk 0:00:19.5]}
48... Qd3+ {[%clk 0:00:08.5]} 49. Kb4 {[%clk 0:00:16.8]} 49... Qxd4+ {[%clk
0:00:08.8]} 50. Kb5 {[%clk 0:00:13.4]} 50... gxf5 {[%clk 0:00:09]} 51. gxf5
{[%clk 0:00:12.5]} 51... Qe5+ {[%clk 0:00:09.2]} 52. Kc6 {[%clk 0:00:13]} 52...
Qxf5 {[%clk 0:00:10.1]} 53. h4 {[%clk 0:00:11.7]} 53... Qh5 {[%clk 0:00:10.3]}
54. Kd6 {[%clk 0:00:11.3]} 54... Qxh4 {[%clk 0:00:11.2]} 55. Ke5 {[%clk
0:00:11.8]} 55... Qg4 {[%clk 0:00:11.7]} 56. Kd6 {[%clk 0:00:08]} 56... h5
{[%clk 0:00:12.6]} 57. Ke5 {[%clk 0:00:08.2]} 57... h4 {[%clk 0:00:13.5]} 58.
Kd5 {[%clk 0:00:08.8]} 58... h3 {[%clk 0:00:14.2]} 59. Ke5 {[%clk 0:00:09.7]}
59... h2 {[%clk 0:00:14.7]} 60. Kf6 {[%clk 0:00:09.6]} 60... h1=Q {[%clk
0:00:13.9]} 61. Ke5 {[%clk 0:00:10.5]} 61... Qhh5+ {[%clk 0:00:13.9]} 62. Kf6
{[%clk 0:00:09.9]} 62... Qgg6+ {[%clk 0:00:14.8]} 63. Ke7 {[%clk 0:00:09.5]}
63... Qhh7+ {[%clk 0:00:15.7]} 64. Kd8 {[%clk 0:00:08.6]} 64... Qgg8# {[%clk
0:00:16.6]} 0-1

[Event "Late-Titled-Tuesday-Blitz-April-23-2024"]
[Site "Chess.com"]
[Date "2024.04.23"]
[Round "9"]
[White "Korchmar_Vasiliy"]
[Black "rhungaski"]
[Result "0-1"]
[WhiteElo "2693"]
[BlackElo "2532"]
[TimeControl "180+1"]
[EndTime "15:47:25 PDT"]
[Termination "rhungaski won by resignation"]

1. d4 {[%clk 0:03:00.9]} 1... g6 {[%clk 0:03:00]} 2. c4 {[%clk 0:02:59.5]} 2...
Bg7 {[%clk 0:03:00.4]} 3. Nc3 {[%clk 0:02:59.8]} 3... c5 {[%clk 0:03:00.1]} 4.
d5 {[%clk 0:02:59.1]} 4... Bxc3+ {[%clk 0:03:00]} 5. bxc3 {[%clk 0:02:59.1]}
5... f5 {[%clk 0:03:00.9]} 6. e4 {[%clk 0:02:58.6]} 6... fxe4 {[%clk 0:03:00.4]}
7. f3 {[%clk 0:02:59]} 7... Nf6 {[%clk 0:02:52.1]} 8. fxe4 {[%clk 0:02:59.1]}
8... e5 {[%clk 0:02:40.2]} 9. dxe6 {[%clk 0:02:51.7]} 9... Nxe4 {[%clk
0:02:11.8]} 10. Bd3 {[%clk 0:02:25.1]} 10... Qh4+ {[%clk 0:01:44.6]} 11. g3
{[%clk 0:02:23.4]} 11... Nxg3 {[%clk 0:01:29.7]} 12. Nf3 {[%clk 0:02:23.2]}
12... Qh3 {[%clk 0:01:29.5]} 13. Rg1 {[%clk 0:02:08.9]} 13... Nf5 {[%clk
0:00:48.7]} 14. exd7+ {[%clk 0:02:09.1]} 14... Bxd7 {[%clk 0:00:31.6]} 15. Qe2+
{[%clk 0:02:09.5]} 15... Ne7 {[%clk 0:00:28.6]} 16. Rg3 {[%clk 0:01:08.4]} 16...
Qe6 {[%clk 0:00:27.8]} 17. Be4 {[%clk 0:01:09.1]} 17... Nbc6 {[%clk 0:00:18.7]}
18. Bg5 {[%clk 0:00:44.9]} 18... O-O {[%clk 0:00:13.2]} 19. O-O-O {[%clk
0:00:44.9]} 19... Kg7 {[%clk 0:00:09.3]} 20. h4 {[%clk 0:00:44.4]} 20... Rf7
{[%clk 0:00:09.2]} 21. h5 {[%clk 0:00:44.6]} 21... Nf5 {[%clk 0:00:09.8]} 22.
Rg2 {[%clk 0:00:21.6]} 22... Re8 {[%clk 0:00:08.6]} 23. hxg6 {[%clk 0:00:22.3]}
23... hxg6 {[%clk 0:00:08.5]} 24. Re1 {[%clk 0:00:23]} 24... Na5 {[%clk
0:00:05.1]} 25. Nh4 {[%clk 0:00:16.6]} 25... Nxh4 {[%clk 0:00:03.7]} 26. Bxh4
{[%clk 0:00:17.5]} 26... Qxe4 {[%clk 0:00:02.4]} 27. Qxe4 {[%clk 0:00:17.1]}
27... Rxe4 {[%clk 0:00:03.3]} 28. Rxe4 {[%clk 0:00:17.7]} 28... Bc6 {[%clk
0:00:04.2]} 29. Rge2 {[%clk 0:00:13.5]} 29... Bxe4 {[%clk 0:00:04.4]} 30. Rxe4
{[%clk 0:00:14.4]} 30... Rf5 {[%clk 0:00:04.4]} 31. Re7+ {[%clk 0:00:08.4]}
31... Rf7 {[%clk 0:00:03.8]} 32. Re4 {[%clk 0:00:09.1]} 32... b6 {[%clk
0:00:04.7]} 33. Bg3 {[%clk 0:00:09.4]} 33... g5 {[%clk 0:00:04.3]} 34. Kd2
{[%clk 0:00:07.9]} 34... Kg6 {[%clk 0:00:04.6]} 35. Bb8 {[%clk 0:00:06.8]} 35...
Kf5 {[%clk 0:00:04.1]} 36. Re5+ {[%clk 0:00:07]} 36... Kg6 {[%clk 0:00:04.2]}
37. Re6+ {[%clk 0:00:07]} 37... Kh5 {[%clk 0:00:04]} 38. Re8 {[%clk 0:00:07]}
38... Nxc4+ {[%clk 0:00:03.9]} 39. Kd3 {[%clk 0:00:06.8]} 39... Na5 {[%clk
0:00:04.8]} 40. Rh8+ {[%clk 0:00:06.3]} 40... Kg4 {[%clk 0:00:05.2]} 41. Rg8
{[%clk 0:00:06.7]} 41... Kf5 {[%clk 0:00:05.6]} 42. Kc2 {[%clk 0:00:05.5]} 42...
Nc6 {[%clk 0:00:05.8]} 43. Bg3 {[%clk 0:00:05.1]} 43... Ne5 {[%clk 0:00:05.7]}
44. Kb3 {[%clk 0:00:04]} 44... Nf3 {[%clk 0:00:05.7]} 45. Kc4 {[%clk 0:00:03.4]}
45... Kg4 {[%clk 0:00:05.9]} 46. Bb8 {[%clk 0:00:03.1]} 46... Nd2+ {[%clk
0:00:05.7]} 47. Kb5 {[%clk 0:00:03.5]} 47... Ne4 {[%clk 0:00:05.7]} 48. c4
{[%clk 0:00:03.7]} 48... Rf2 {[%clk 0:00:05.3]} 49. a4 {[%clk 0:00:03.1]} 49...
Rb2+ {[%clk 0:00:04.9]} 50. Kc6 {[%clk 0:00:03.1]} 50... Rb4 {[%clk 0:00:04.6]}
51. Bxa7 {[%clk 0:00:02.9]} 51... Rxa4 {[%clk 0:00:04]} 52. Bxb6 {[%clk
0:00:02.9]} 52... Rxc4 {[%clk 0:00:03.6]} 53. Kd5 {[%clk 0:00:03.2]} 53... Rb4
{[%clk 0:00:03.8]} 54. Ke5 {[%clk 0:00:03.5]} 54... Rxb6 {[%clk 0:00:03.3]} 55.
Kxe4 {[%clk 0:00:04]} 55... c4 {[%clk 0:00:03]} 56. Kd4 {[%clk 0:00:04.4]} 56...
Rc6 {[%clk 0:00:03.3]} 57. Kc3 {[%clk 0:00:05.1]} 57... Kf4 {[%clk 0:00:03.3]}
58. Rf8+ {[%clk 0:00:05.6]} 58... Kg3 {[%clk 0:00:03.5]} 59. Rg8 {[%clk
0:00:05.8]} 59... g4 {[%clk 0:00:04.2]} 60. Rf8 {[%clk 0:00:06.3]} 60... Kg2
{[%clk 0:00:04.2]} 61. Rg8 {[%clk 0:00:06.9]} 61... g3 {[%clk 0:00:04.8]} 62.
Rf8 {[%clk 0:00:07.5]} 62... Rc7 {[%clk 0:00:05.3]} 63. Rg8 {[%clk 0:00:08]}
63... Kf2 {[%clk 0:00:05.8]} 64. Rf8+ {[%clk 0:00:08.2]} 64... Kg1 {[%clk
0:00:06.3]} 65. Rg8 {[%clk 0:00:08.9]} 65... g2 {[%clk 0:00:06.8]} 66. Rf8
{[%clk 0:00:08.2]} 66... Rc5 {[%clk 0:00:07.1]} 67. Rg8 {[%clk 0:00:08.5]} 67...
Rf5 {[%clk 0:00:07.4]} 68. Rg7 {[%clk 0:00:08.6]} 68... Kf2 {[%clk 0:00:07.6]}
0-1